{"text_format":"1","workbook":"xlsx","n_sheets":2,"sheets":["FMEA","Kriterien für Bewertungszahl"],"not_rendered":{"charts":0,"images":10,"macros":1,"external_links":0,"defined_names":3,"comments":0,"pivot_tables":0},"unopened":[],"bounds":{"document_bytes":16777216,"sheet_cells":100000,"rows_first":2000,"rows_last":500,"rows_between":2000,"halvings":0,"cell_chars":16384,"cell_head_chars":4096},"cells_cut":0,"cells_raw":0,"read":"whole","date_system":"1900"}

{"sheet":"FMEA","index":0,"n_rows":41,"n_cols":15,"rows_kept":41,"cut":false,"hidden":false,"merged":[[20,0,20,9],[16,2,16,3],[17,2,17,3],[18,2,18,3],[19,2,19,3],[13,1,19,1],[13,0,19,0],[30,2,30,3],[31,2,31,3],[32,2,32,3],[28,0,28,9],[29,0,35,0],[29,1,35,1],[33,2,33,3],[34,2,34,3],[35,2,35,3],[29,2,29,3],[21,0,27,0],[21,1,27,1],[21,2,21,3],[22,2,22,3],[23,2,23,3],[24,2,24,3],[25,2,25,3],[26,2,26,3],[27,2,27,3],[12,0,12,9],[6,2,11,3],[13,2,13,3],[14,2,14,3],[15,2,15,3],[6,4,6,7],[7,4,11,4],[7,6,11,6],[7,5,11,5],[6,8,11,8],[6,9,11,9],[7,7,11,7],[6,1,11,1],[6,0,11,0],[6,10,6,14],[7,11,11,11],[7,14,11,14],[7,10,11,10],[0,0,4,1],[0,4,0,8],[1,4,1,8],[3,4,3,7],[3,11,3,14],[1,9,1,14],[0,9,0,14],[7,12,11,12],[7,13,11,13]]}
["FMEA"]
[]
[null,null,"Design-FMEA:",null,"Erstellt durch (Name/Abt.)",null,null,null,"Verantwortlich","Erstellt","Überarbeitet","Aufwand (in h)"]
[null,null,"Prozess-FMEA:"]
[null,null,"System-FMEA:",null,null,null,null,null,null,null,null,null,null,null,"www.emilQ.com"]
[]
["Bauteil/ Prozessschritt/ Bereich","Möglicher Fehler","Mögliche Ursachen des Fehlers",null,"Derzeitiger Zustand",null,null,null,"Empfohlene Abstell-maßnahmen","Verant-wortlichkeit / Termin","Verbesserter Zustand"]
[null,null,null,null,"Bedeutung","Auftreten","Entdeckung","RPZ Risikoprioritäts-zahl",null,null,"Getroffene Maßnahmen","Bedeutung","Auftreten","Entdeckung","RPZ Risikoprioritäts-zahl"]
[]
[]
[]
[]
["1."]
[null,null,null,null,null,null,null,{"$f":"E14*F14*G14","v":0},null,null,null,null,null,null,{"$f":"L14*M14*N14","v":0}]
[null,null,null,null,null,null,null,{"$f":"E15*F15*G15","v":0},null,null,null,null,null,null,{"$f":"L15*M15*N15","v":0}]
[null,null,null,null,null,null,null,0,null,null,null,null,null,null,0]
[null,null,null,null,null,null,null,0,null,null,null,null,null,null,0]
[null,null,null,null,null,null,null,0,null,null,null,null,null,null,0]
[null,null,null,null,null,null,null,0,null,null,null,null,null,null,0]
[null,null,null,null,null,null,null,0,null,null,null,null,null,null,0]
["2."]
[null,null,null,null,null,null,null,{"$f":"E22*F22*G22","v":0},null,null,null,null,null,null,{"$f":"L22*M22*N22","v":0}]
[null,null,null,null,null,null,null,0,null,null,null,null,null,null,{"$f":"L23*M23*N23","v":0}]
[null,null,null,null,null,null,null,0,null,null,null,null,null,null,0]
[null,null,null,null,null,null,null,0,null,null,null,null,null,null,0]
[null,null,null,null,null,null,null,0,null,null,null,null,null,null,0]
[null,null,null,null,null,null,null,0,null,null,null,null,null,null,0]
[null,null,null,null,null,null,null,0,null,null,null,null,null,null,0]
["3."]
[null,null,null,null,null,null,null,0,null,null,null,null,null,null,{"$f":"L30*M30*N30","v":0}]
[null,null,null,null,null,null,null,0,null,null,null,null,null,null,{"$f":"L31*M31*N31","v":0}]
[null,null,null,null,null,null,null,0,null,null,null,null,null,null,0]
[null,null,null,null,null,null,null,0,null,null,null,null,null,null,0]
[null,null,null,null,null,null,null,0,null,null,null,null,null,null,0]
[null,null,null,null,null,null,null,0,null,null,null,null,null,null,0]
[null,null,null,null,null,null,null,0,null,null,null,null,null,null,0]
[]
[]
[]
[]
["© Copyright 2009 – 2014 by emilQ® EXCELLENCE. Alle Rechte vorbehalten – www.emilQ.com"]

{"sheet":"Kriterien für Bewertungszahl","index":1,"n_rows":19,"n_cols":6,"rows_kept":19,"cut":false,"hidden":false,"merged":[[18,0,18,5],[6,3,7,3],[6,5,7,5],[0,0,0,5],[12,0,12,1],[12,2,12,3],[12,4,12,5],[5,0,5,1],[5,2,5,3],[5,4,5,5],[6,1,7,1],[9,5,11,5],[9,3,11,3],[9,1,11,1],[8,4,8,5],[8,2,8,3],[8,0,8,1],[15,0,15,1],[15,2,15,3],[15,4,15,5],[13,1,14,1],[13,3,14,3],[13,5,14,5],[1,4,1,5],[2,4,2,5],[3,3,4,3],[3,5,4,5],[1,0,1,1],[2,0,2,1],[3,1,4,1],[1,2,1,3],[2,2,2,3]]}
["Kriterien für Bewertungszahlen der FMEA"]
["Bewertungszahl für die Bedeutung B",null,"Bewertungszahl für die Auftretenswahrscheinlichkeit A",null,"Bewertungszahl für die Entdeckungswahrscheinlichkeit E"]
["Sehr hoch",null,"Sehr hoch",null,"Sehr gering"]
[10,"Sicherheitsrisiko, Nichterfüllung gesetzlicher Vorschriften, Totalausfall",10,"Sehr häufiges Auftreten der Fehlerursache, unbrauchbares, ungeeignetes Konstruktionsprinzip",10,"Entdecken der aufgetretenen Fehlerursache ist unwahrscheinlich, Zuverlässigkeit der Konstruktionsauslegung wurde nicht oder kann nicht nachgewiesen werden. Nachweisverfahren sind unsicher"]
[9,null,9,null,9]
["Hoch",null,"Hoch",null,"Gering"]
[8,"Funktionsfähigkeit stark eingeschränkt, Funktionseinschränkung wichtiger Teilsysteme",8,"Fehlerursache tritt wiederholt auf. Problematische, unausgereifte Konstruktion",8,"Entdecken der aufgetretenen Fehlerursache ist weniger wahrscheinlich, Zuverlässigkeit der Konstruktionsauslegung kann wahrscheinlich nicht nachgewiesen werden, Nachweisverfahren sind unsicher"]
[7,null,7,null,7]
["Mäßig",null,"Mäßig",null,"Mäßig"]
[6,"Funktionsfähigkeit eingeschränkt",6,"Gelegentlich auftretende Fehlerursache, geeigente im Reifegrad fortgeschrittene Konstruktion",6,"Entdecken der aufgetretenen Fehlerursache ist weniger wahrscheinlich, Zuverlässigkeit der Konstruktionsauslegung könnte vielleicht nachgewiesen werden, Nachweisverfahren sind relativ sicher"]
[5,null,5,null,5]
[4,null,4,null,4]
["Gering",null,"Gering",null,"Hoch"]
[3,"Geringe Funktionsbeeinträchtigung",3,"Auftreten der Fehlerursache ist gering, bewährte, konstruktive Auslegung",3,"Entdecken der aufgetretenen Fehlerursache ist sehr wahrscheinlich, durch mehrere voneinander unabhängige Nachweisverfahren bestätigt"]
[2,null,2,null,2]
["Sehr gering",null,"Sehr gering",null,"Sehr hoch"]
[1,"Sehr geringe Funktionsbeeinträchtigung",1,"Auftreten der Fehlerursache ist sehr unwahrscheinlich",1,"Aufgetretene Fehlerursache wird sicher entdeckt"]
[]
["Bitte beachten Sie: Die hier genannten Kriterien sind Beispiele. Natürlich können Sie sie nach Ihren Anforderungen anpassen/ verändern"]